[Event "23rd ETCC Women 2021"]
[Site "Catez"]
[Date "2021.11.14"]
[Round "3.23"]
[White "De Seroux, Camille"]
[Black "Matnadze, Ana"]
[Result "0-1"]
[ECO "B50"]
[WhiteElo "2125"]
[BlackElo "2418"]
[Annotator "ChessBase"]
[PlyCount "120"]
[EventDate "2021.11.08"]
[EventType "team-tourn"]
[EventCountry "SLO"]
[SourceTitle "playchess.com"]
[Source "ChessBase"]
[SourceQuality "1"]
[WhiteTeam "Switzerland"]
[BlackTeam "Spain"]
[WhiteTeamCountry "SUI"]
[BlackTeamCountry "ESP"]
[TimeControl "40/5400+30:1800+30"]

1. e4 {[%emt 0:00:06]} c5 {[%emt 0:00:06]} 2. Nf3 {[%emt 0:00:12]} d6 {[%emt 0:
00:05]} 3. Bc4 {[%emt 0:00:05]} Nc6 {[%emt 0:00:33]} 4. O-O {[%emt 0:00:34]}
Nf6 {[%emt 0:00:50]} 5. Re1 {[%emt 0:01:54]} Bg4 {[%emt 0:00:44]} 6. h3 {
[%emt 0:03:39]} Bh5 {[%emt 0:02:21]} 7. d3 {[%emt 0:02:39]} a6 {[%emt 0:00:49]}
8. Nbd2 {[%emt 0:02:30]} e6 {[%emt 0:01:16]} 9. Bb3 {[%emt 0:06:35]} Be7 {
[%emt 0:02:09]} 10. c3 {[%emt 0:03:43]} d5 {[%emt 0:00:53]} 11. Nf1 {[%emt 0:
23:17]} dxe4 {[%emt 0:08:11]} 12. dxe4 {[%emt 0:00:27]} Qxd1 {[%emt 0:00:25]}
13. Bxd1 {[%emt 0:00:22]} Rd8 {[%emt 0:02:45]} 14. Ng3 {[%emt 0:09:11]} Bxf3 {
[%emt 0:02:04]} 15. Bxf3 {[%emt 0:02:09]} Ne5 {[%emt 0:00:38]} 16. Be2 {
[%emt 0:03:25]} h5 {[%emt 0:03:13]} 17. Bf4 {[%emt 0:15:36]} Ng6 {[%emt 0:03:
34]} 18. Bg5 {[%emt 0:01:50]} h4 {[%emt 0:00:33]} 19. Bxf6 {[%emt 0:03:28]}
gxf6 {[%emt 0:03:11]} 20. Nf1 {[%emt 0:01:44]} Nf4 {[%emt 0:00:29]} 21. Bf3 {
[%emt 0:01:21]} Rg8 {[%emt 0:01:22]} 22. Kh1 {[%emt 0:01:01]} Nd3 {[%emt 0:01:
05]} 23. Re2 {[%emt 0:00:43]} Ne5 {[%emt 0:01:34]} 24. Rd2 {[%emt 0:05:28]}
Rxd2 {[%emt 0:07:13]} 25. Nxd2 {[%emt 0:00:05]} Nd3 {[%emt 0:00:10]} 26. Kg1 {
[%emt 0:01:59]} b5 {[%emt 0:00:26]} 27. c4 {[%emt 0:05:45]} b4 {[%emt 0:01:47]}
28. b3 {[%emt 0:02:29]} Bd6 {[%emt 0:00:37]} 29. Kf1 {[%emt 0:01:24]} Be5 {
[%emt 0:01:49]} 30. Rd1 {[%emt 0:00:24]} Bd4 {[%emt 0:03:12]} 31. Ke2 {[%emt 0:
00:19]} Nf4+ {[%emt 0:00:51]} 32. Kf1 {[%emt 0:00:05]} Ke7 {[%emt 0:00:35]} 33.
Bg4 {[%emt 0:01:08]} Nd3 {[%emt 0:05:00]} 34. Nf3 {[%emt 0:00:59]} Nxf2 {
[%emt 0:04:29]} 35. Rxd4 {[%emt 0:00:12]} Nxg4 {[%emt 0:00:23]} 36. Rd2 {
[%emt 0:00:29]} Ne5 {[%emt 0:06:24]} 37. Nxh4 {[%emt 0:00:19]} Rh8 {[%emt 0:00:
12]} 38. g3 {[%emt 0:01:09]} a5 {[%emt 0:00:17]} 39. Kg2 {[%emt 0:00:40]} a4 {
[%emt 0:00:18]} 40. Rd1 {[%emt 0:00:30]} a3 {[%emt 0:09:30]} 41. Kf2 {[%emt 0:
03:27]} Rd8 {[%emt 0:07:24]} 42. Ke2 {[%emt 0:18:12]} Rxd1 {[%emt 0:00:21]} 43.
Kxd1 {[%emt 0:00:02]} Nd3 {[%emt 0:04:42]} 44. Nf3 {[%emt 0:03:09]} Nf2+ {
[%emt 0:00:06]} 45. Kc2 {[%emt 0:01:10]} Nxe4 {[%emt 0:00:09]} 46. g4 {[%emt 0:
00:41]} Nf2 {[%emt 0:01:38]} 47. Nd2 {[%emt 0:01:58]} Kd6 {[%emt 0:09:29]} 48.
h4 {[%emt 0:00:58]} Ke5 {[%emt 0:00:36]} 49. h5 {[%emt 0:01:36]} Nxg4 {[%emt 0:
00:11]} 50. Kd3 {[%emt 0:00:36]} Kf4 {[%emt 0:02:07]} 51. h6 {[%emt 0:00:38]}
Nxh6 {[%emt 0:01:16]} 52. Ne4 {[%emt 0:00:05]} Ng4 {[%emt 0:00:44]} 53. Nxc5 {
[%emt 0:00:14]} Ne5+ {[%emt 0:00:21]} 54. Ke2 {[%emt 0:01:40]} Nc6 {[%emt 0:00:
10]} 55. Kd3 {[%emt 0:01:29]} e5 {[%emt 0:01:51]} 56. Ne4 {[%emt 0:01:35]} f5 {
[%emt 0:01:07]} 57. Nd6 {[%emt 0:00:08]} e4+ {[%emt 0:00:18]} 58. Ke2 {[%emt 0:
00:57]} Nd4+ {[%emt 0:02:49]} 59. Kd1 {[%emt 0:00:20]} Nxb3 {[%emt 0:01:26]}
60. Nxf7 {[%emt 0:00:21]} Nc5 {[%emt 0:00:20]} 0-1

[Event "23rd ETCC Women 2021"]
[Site "Catez"]
[Date "2021.11.14"]
[Round "3.24"]
[White "Calzetta Ruiz, Monica"]
[Black "Tamrazyan, Gohar"]
[Result "1-0"]
[ECO "B32"]
[WhiteElo "2201"]
[BlackElo "1981"]
[Annotator "NA"]
[PlyCount "73"]
[EventDate "2021.11.08"]
[EventType "team-tourn"]
[EventCountry "SLO"]
[SourceTitle "playchess.com"]
[Source "ChessBase"]
[SourceQuality "1"]
[WhiteTeam "Spain"]
[BlackTeam "Switzerland"]
[WhiteTeamCountry "ESP"]
[BlackTeamCountry "SUI"]
[TimeControl "40/5400+30:1800+30"]

1. e4 {[%emt 0:00:04]} c5 {[%emt 0:00:04]} 2. Nf3 {[%emt 0:00:09]} Nc6 {
[%emt 0:00:03]} 3. d4 {[%emt 0:00:06]} cxd4 {[%emt 0:00:05]} 4. Nxd4 {[%emt 0:
00:07]} e5 {[%emt 0:00:03]} 5. Nb5 {[%emt 0:00:11]} d6 {[%emt 0:00:08]} 6. c4 {
[%emt 0:00:11]} Be7 {[%emt 0:00:10]} 7. N5c3 {[%emt 0:00:39]} Be6 {[%emt 0:01:
52]} 8. Nd5 {[%emt 0:02:17]} Nf6 {[%emt 0:04:29]} 9. Nbc3 {[%emt 0:14:12]} O-O
{[%emt 0:02:34]} 10. Bd3 {[%emt 0:06:11]} Nd7 {[%emt 0:09:24]} 11. O-O {
[%emt 0:07:45]} Bg5 {[%emt 0:02:28]} 12. Nb5 {[%emt 0:11:32]} Bxc1 {[%emt 0:04:
42]} 13. Rxc1 {[%emt 0:00:24]} Nc5 {[%emt 0:23:59]} 14. Bb1 {[%emt 0:01:06]}
Qg5 {[%emt 0:08:13]} 15. b4 {[%emt 0:15:10]} Bh3 {[%emt 0:12:24]} 16. Qf3 {
[%emt 0:06:45]} Bg4 {[%emt 0:00:29]} 17. Qe3 {[%emt 0:02:03]} Ne6 {[%emt 0:02:
43]} 18. Qxg5 {[%emt 0:09:18]} Nxg5 {[%emt 0:00:07]} 19. h4 {[%emt 0:00:07]}
Ne6 {[%emt 0:03:44]} 20. f3 {[%emt 0:00:13]} Ned4 {[%emt 0:02:19]} 21. Nxd4 {
[%emt 0:02:21]} Nxd4 {[%emt 0:00:21]} 22. fxg4 {[%emt 0:00:30]} Ne2+ {[%emt 0:
00:25]} 23. Kf2 {[%emt 0:00:24]} Nxc1 {[%emt 0:00:19]} 24. Rxc1 {[%emt 0:00:03]
} b6 {[%emt 0:07:38]} 25. Rd1 {[%emt 0:05:01]} Rfd8 {[%emt 0:02:16]} 26. Ne7+ {
[%emt 0:02:24]} Kf8 {[%emt 0:00:11]} 27. Nc6 {[%emt 0:00:03]} Rd7 {[%emt 0:01:
51]} 28. Nxe5 {[%emt 0:00:34]} Rc7 {[%emt 0:00:16]} 29. Rxd6 {[%emt 0:00:14]}
f6 {[%emt 0:00:39]} 30. Nc6 {[%emt 0:00:35]} Rac8 {[%emt 0:04:36]} 31. b5 {
[%emt 0:00:11]} a6 {[%emt 0:00:46]} 32. a4 {[%emt 0:02:51]} a5 {[%emt 0:03:51]}
33. Bd3 {[%emt 0:00:42]} Kf7 {[%emt 0:01:20]} 34. c5 {[%emt 0:01:33]} bxc5 {
[%emt 0:00:40]} 35. b6 {[%emt 0:01:34]} Rxc6 {[%emt 0:02:12]} 36. b7 {[%emt 0:
00:20]} R6c7 {[%emt 0:00:11]} 37. Rd7+ {[%emt 0:01:10]} 1-0

[Event "23rd ETCC Women 2021"]
[Site "Catez"]
[Date "2021.11.14"]
[Round "3.25"]
[White "Bulmaga, Irina"]
[Black "Injac, Teodora"]
[Result "0-1"]
[ECO "C84"]
[WhiteElo "2405"]
[BlackElo "2387"]
[Annotator "ChessBase"]
[PlyCount "112"]
[EventDate "2021.11.08"]
[EventType "team-tourn"]
[EventCountry "SLO"]
[SourceTitle "playchess.com"]
[Source "ChessBase"]
[SourceQuality "1"]
[WhiteTeam "Romania"]
[BlackTeam "Serbia"]
[WhiteTeamCountry "ROU"]
[BlackTeamCountry "SRB"]
[TimeControl "40/5400+30:1800+30"]

1. e4 {[%emt 0:00:05]} e5 {[%emt 0:00:13]} 2. Nf3 {[%emt 0:00:13]} Nc6 {
[%emt 0:00:04]} 3. Bb5 {[%emt 0:00:25]} a6 {[%emt 0:00:31]} 4. Ba4 {[%emt 0:00:
12]} Nf6 {[%emt 0:00:06]} 5. d4 {[%emt 0:01:22]} exd4 {[%emt 0:03:43]} 6. O-O {
[%emt 0:00:34]} Be7 {[%emt 0:03:41]} 7. e5 {[%emt 0:00:32]} Ne4 {[%emt 0:01:30]
} 8. Nxd4 {[%emt 0:01:36]} O-O {[%emt 0:03:59]} 9. Nf5 {[%emt 0:04:57]} d5 {
[%emt 0:03:28]} 10. Nxe7+ {[%emt 0:19:21]} Nxe7 {[%emt 0:02:54]} 11. c3 {
[%emt 0:06:27]} Nc5 {[%emt 0:13:36]} 12. Bc2 {[%emt 0:02:33]} Bf5 {[%emt 0:01:
00]} 13. Bxf5 {[%emt 0:13:53]} Nxf5 {[%emt 0:00:05]} 14. Qg4 {[%emt 0:03:14]}
Qc8 {[%emt 0:03:14]} 15. Nd2 {[%emt 0:07:15]} Qe6 {[%emt 0:19:29]} 16. Nf3 {
[%emt 0:07:08]} a5 {[%emt 0:20:02]} 17. Rd1 {[%emt 0:06:17]} c6 {[%emt 0:05:34]
} 18. Qf4 {[%emt 0:09:27]} Qg6 {[%emt 0:03:59]} 19. Nd4 {[%emt 0:01:37]} Nxd4 {
[%emt 0:01:56]} 20. cxd4 {[%emt 0:00:08]} Ne6 {[%emt 0:00:33]} 21. Qg3 {
[%emt 0:01:15]} f5 {[%emt 0:04:12]} 22. f4 {[%emt 0:03:41]} Qxg3 {[%emt 0:02:
31]} 23. hxg3 {[%emt 0:00:03]} Ra6 {[%emt 0:00:28]} 24. Be3 {[%emt 0:00:35]}
Rb6 {[%emt 0:00:35]} 25. Rd2 {[%emt 0:00:19]} g6 {[%emt 0:00:30]} 26. Rc1 {
[%emt 0:01:11]} Kf7 {[%emt 0:00:44]} 27. Rc3 {[%emt 0:00:48]} Ra8 {[%emt 0:00:
25]} 28. Kf2 {[%emt 0:01:24]} h5 {[%emt 0:00:37]} 29. Ke2 {[%emt 0:01:23]} Rb5
{[%emt 0:02:07]} 30. Kd1 {[%emt 0:01:18]} Rh8 {[%emt 0:00:23]} 31. Ke2 {
[%emt 0:00:24]} Rb4 {[%emt 0:01:03]} 32. a3 {[%emt 0:01:39]} Rb5 {[%emt 0:00:
16]} 33. Kf3 {[%emt 0:00:29]} Ra8 {[%emt 0:00:30]} 34. b3 {[%emt 0:00:44]} Ra6
{[%emt 0:01:53]} 35. Rdd3 {[%emt 0:00:06]} Ra8 {[%emt 0:00:20]} 36. Rc1 {
[%emt 0:00:27]} Ke7 {[%emt 0:01:13]} 37. Bd2 {[%emt 0:00:54]} Rxb3 {[%emt 0:00:
33]} 38. Ke2 {[%emt 0:01:39]} Kd7 {[%emt 0:00:49]} 39. Ke3 {[%emt 0:01:06]}
Rxd3+ {[%emt 0:00:20]} 40. Kxd3 {[%emt 0:00:02]} b6 {[%emt 0:00:38]} 41. Rb1 {
[%emt 0:32:05]} Kc7 {[%emt 0:30:42]} 42. a4 {[%emt 0:02:06]} c5 {[%emt 0:00:00]
} 43. dxc5 {[%emt 0:00:00]} Nxc5+ {[%emt 0:00:00]} 44. Kd4 {[%emt 0:00:00]}
Nxa4 {[%emt 0:00:00]} 45. Be1 {[%emt 0:00:00]} Kc6 {[%emt 0:00:00]} 46. Rc1+ {
[%emt 0:00:00]} Nc5 {[%emt 0:00:00]} 47. Rc2 {[%emt 0:00:00]} Kb7 {[%emt 0:00:
00]} 48. Rxc5 {[%emt 0:00:00]} bxc5+ {[%emt 0:00:00]} 49. Kxd5 {[%emt 0:00:00]}
Kb6 {[%emt 0:01:33]} 50. Ke6 {[%emt 0:00:17]} Kc6 {[%emt 0:01:09]} 51. Bc3 {
[%emt 0:01:28]} Ra6 {[%emt 0:00:28]} 52. Bb2 {[%emt 0:02:01]} a4 {[%emt 0:00:
10]} 53. Ba3 {[%emt 0:00:18]} Rb6 {[%emt 0:00:52]} 54. Kf7 {[%emt 0:00:38]} Kd5
{[%emt 0:00:17]} 55. Ke7 {[%emt 0:00:27]} Rb3 {[%emt 0:00:12]} 56. Bc1 {
[%emt 0:00:04]} a3 {[%emt 0:00:10]} 0-1

[Event "23rd ETCC Women 2021"]
[Site "Catez"]
[Date "2021.11.14"]
[Round "3.26"]
[White "Velikic, Adela"]
[Black "Peptan, Corina-Isabela"]
[Result "0-1"]
[ECO "E39"]
[WhiteElo "2287"]
[BlackElo "2385"]
[Annotator "NA"]
[PlyCount "44"]
[EventDate "2021.11.08"]
[EventType "team-tourn"]
[EventCountry "SLO"]
[SourceTitle "playchess.com"]
[Source "ChessBase"]
[SourceQuality "1"]
[WhiteTeam "Serbia"]
[BlackTeam "Romania"]
[WhiteTeamCountry "SRB"]
[BlackTeamCountry "ROU"]
[TimeControl "40/5400+30:1800+30"]

1. d4 {[%emt 0:00:03]} Nf6 {[%emt 0:00:06]} 2. c4 {[%emt 0:00:06]} e6 {[%emt 0:
00:14]} 3. Nc3 {[%emt 0:00:07]} Bb4 {[%emt 0:00:23]} 4. Qc2 {[%emt 0:00:07]} c5
{[%emt 0:01:47]} 5. dxc5 {[%emt 0:00:12]} O-O {[%emt 0:00:05]} 6. a3 {[%emt 0:
00:12]} Bxc5 {[%emt 0:00:05]} 7. Nf3 {[%emt 0:00:15]} Nc6 {[%emt 0:01:29]} 8.
Bf4 {[%emt 0:01:03]} b6 {[%emt 0:04:52]} 9. Rd1 {[%emt 0:03:16]} Bb7 {[%emt 0:
00:27]} 10. e4 {[%emt 0:09:46]} Ne7 {[%emt 0:33:06]} 11. Be2 {[%emt 0:21:49]}
Ng6 {[%emt 0:01:35]} 12. Bc1 {[%emt 0:04:36]} Rc8 {[%emt 0:01:54]} 13. O-O {
[%emt 0:07:01]} h6 {[%emt 0:07:56]} 14. h3 {[%emt 0:14:29]} Qc7 {[%emt 0:03:10]
} 15. Rfe1 {[%emt 0:06:17]} a6 {[%emt 0:06:24]} 16. Bf1 {[%emt 0:06:42]} Rfd8 {
[%emt 0:06:52]} 17. Qb3 {[%emt 0:08:39]} Qb8 {[%emt 0:12:34]} 18. Bd3 {[%emt 0:
01:45]} Nf4 {[%emt 0:04:27]} 19. Bb1 {[%emt 0:02:54]} Nxh3+ {[%emt 0:01:24]}
20. Kf1 {[%emt 0:09:03]} Nxf2 {[%emt 0:00:09]} 21. Qc2 {[%emt 0:01:02]} Nh5 {
[%emt 0:03:39]} 22. Be3 {[%emt 0:01:00]} Nxd1 {[%emt 0:00:24]} 0-1

[Event "23rd ETCC Women 2021"]
[Site "Catez"]
[Date "2021.11.14"]
[Round "3.27"]
[White "Cosma, Elena-Luminita"]
[Black "Eric, Jovana"]
[Result "1-0"]
[ECO "D12"]
[WhiteElo "2281"]
[BlackElo "2253"]
[Annotator "ChessBase"]
[PlyCount "107"]
[EventDate "2021.11.08"]
[EventType "team-tourn"]
[EventCountry "SLO"]
[SourceTitle "playchess.com"]
[Source "ChessBase"]
[SourceQuality "1"]
[WhiteTeam "Romania"]
[BlackTeam "Serbia"]
[WhiteTeamCountry "ROU"]
[BlackTeamCountry "SRB"]
[TimeControl "40/5400+30:1800+30"]

1. d4 {[%emt 0:00:02]} d5 {[%emt 0:00:09]} 2. c4 {[%emt 0:00:14]} c6 {[%emt 0:
00:10]} 3. Nf3 {[%emt 0:00:07]} Nf6 {[%emt 0:00:06]} 4. e3 {[%emt 0:00:14]} Bf5
{[%emt 0:00:49]} 5. Nc3 {[%emt 0:03:09]} e6 {[%emt 0:01:16]} 6. Nh4 {[%emt 0:
01:26]} Bg6 {[%emt 0:01:31]} 7. Qb3 {[%emt 0:02:28]} Qc7 {[%emt 0:02:41]} 8.
Nxg6 {[%emt 0:00:36]} hxg6 {[%emt 0:00:05]} 9. Bd2 {[%emt 0:01:03]} Nbd7 {
[%emt 0:02:49]} 10. h3 {[%emt 0:02:20]} Be7 {[%emt 0:03:41]} 11. Rc1 {[%emt 0:
10:13]} Nb6 {[%emt 0:06:56]} 12. cxd5 {[%emt 0:01:18]} exd5 {[%emt 0:00:05]}
13. Bd3 {[%emt 0:04:52]} Qd7 {[%emt 0:07:09]} 14. a4 {[%emt 0:12:47]} Nc8 {
[%emt 0:02:39]} 15. Ne2 {[%emt 0:06:27]} Nd6 {[%emt 0:01:59]} 16. Ng3 {[%emt 0:
00:37]} Nf5 {[%emt 0:24:46]} 17. Nxf5 {[%emt 0:02:35]} gxf5 {[%emt 0:00:04]}
18. Bb4 {[%emt 0:00:51]} Ne4 {[%emt 0:04:18]} 19. Rc2 {[%emt 0:08:30]} g6 {
[%emt 0:03:11]} 20. a5 {[%emt 0:10:22]} a6 {[%emt 0:01:47]} 21. Qa3 {[%emt 0:
01:54]} Nd6 {[%emt 0:02:41]} 22. Bc5 {[%emt 0:03:38]} Kf8 {[%emt 0:01:41]} 23.
Kd1 {[%emt 0:02:17]} Kg7 {[%emt 0:00:51]} 24. Kc1 {[%emt 0:00:32]} Rae8 {
[%emt 0:04:25]} 25. Kb1 {[%emt 0:06:50]} Ne4 {[%emt 0:01:42]} 26. Bxe4 {
[%emt 0:00:47]} fxe4 {[%emt 0:00:14]} 27. Rhc1 {[%emt 0:01:46]} Rh5 {[%emt 0:
06:05]} 28. Bxe7 {[%emt 0:03:41]} Rxe7 {[%emt 0:02:50]} 29. Rc3 {[%emt 0:05:43]
} Rf5 {[%emt 0:04:48]} 30. R1c2 {[%emt 0:00:04]} Re6 {[%emt 0:04:11]} 31. Rb3 {
[%emt 0:03:39]} Re7 {[%emt 0:02:17]} 32. h4 {[%emt 0:00:58]} Rh5 {[%emt 0:01:
12]} 33. g3 {[%emt 0:00:10]} Rh8 {[%emt 0:00:34]} 34. Qc5 {[%emt 0:01:01]} Rc8
{[%emt 0:01:25]} 35. Rb6 {[%emt 0:00:29]} Rc7 {[%emt 0:00:47]} 36. Qc3 {
[%emt 0:00:41]} Qg4 {[%emt 0:00:29]} 37. Qe1 {[%emt 0:00:28]} Re8 {[%emt 0:01:
04]} 38. Ka2 {[%emt 0:00:53]} Re6 {[%emt 0:01:25]} 39. Rc3 {[%emt 0:01:16]} Qf5
{[%emt 0:01:04]} 40. Rc2 {[%emt 0:00:35]} Rd6 {[%emt 0:02:55]} 41. Qb4 {
[%emt 0:30:37]} Rdd7 {[%emt 0:30:43]} 42. Qe1 {[%emt 0:00:00]} c5 {[%emt 0:00:
00]} 43. Rxc5 {[%emt 0:00:00]} Rxc5 {[%emt 0:00:00]} 44. dxc5 {[%emt 0:00:00]}
d4 {[%emt 0:00:00]} 45. exd4 {[%emt 0:00:00]} Rxd4 {[%emt 0:00:00]} 46. Qc3 {
[%emt 0:00:00]} Qd5+ {[%emt 0:00:00]} 47. Ka3 {[%emt 0:00:00]} Qc4 {[%emt 0:00:
33]} 48. Qxc4 {[%emt 0:00:00]} Rxc4 {[%emt 0:00:04]} 49. b4 {[%emt 0:00:00]}
Rc2 {[%emt 0:00:34]} 50. Rxb7 {[%emt 0:00:00]} Kf6 {[%emt 0:00:27]} 51. b5 {
[%emt 0:00:00]} axb5 {[%emt 0:01:12]} 52. a6 {[%emt 0:00:00]} b4+ {[%emt 0:00:
48]} 53. Rxb4 {[%emt 0:00:00]} Rxc5 {[%emt 0:00:31]} 54. a7 {[%emt 0:00:00]}
1-0

[Event "23rd ETCC Women 2021"]
[Site "Catez"]
[Date "2021.11.14"]
[Round "3.28"]
[White "Gajcin, Marina"]
[Black "Ciolacu, Alessia-Mihaela"]
[Result "1/2-1/2"]
[ECO "C54"]
[WhiteElo "2198"]
[BlackElo "2263"]
[Annotator "RC"]
[PlyCount "163"]
[EventDate "2021.11.08"]
[EventType "team-tourn"]
[EventCountry "SLO"]
[SourceTitle "playchess.com"]
[Source "ChessBase"]
[SourceQuality "1"]
[WhiteTeam "Serbia"]
[BlackTeam "Romania"]
[WhiteTeamCountry "SRB"]
[BlackTeamCountry "ROU"]
[TimeControl "40/5400+30:1800+30"]

1. e4 {[%emt 0:00:04]} e5 {[%emt 0:00:08]} 2. Nf3 {[%emt 0:00:12]} Nc6 {
[%emt 0:00:08]} 3. Bc4 {[%emt 0:00:11]} Nf6 {[%emt 0:00:08]} 4. d3 {[%emt 0:00:
05]} Bc5 {[%emt 0:00:12]} 5. c3 {[%emt 0:02:14]} a6 {[%emt 0:00:18]} 6. O-O {
[%emt 0:02:43]} d6 {[%emt 0:00:21]} 7. Bb3 {[%emt 0:01:28]} Ba7 {[%emt 0:01:08]
} 8. Nbd2 {[%emt 0:05:18]} O-O {[%emt 0:00:25]} 9. Re1 {[%emt 0:03:07]} h6 {
[%emt 0:01:32]} 10. Nf1 {[%emt 0:02:35]} Re8 {[%emt 0:00:13]} 11. Ng3 {[%emt 0:
01:46]} Be6 {[%emt 0:01:22]} 12. Bc2 {[%emt 0:04:18]} d5 {[%emt 0:02:20]} 13.
h3 {[%emt 0:07:19]} b5 {[%emt 0:03:09]} 14. d4 {[%emt 0:20:12]} Nxe4 {[%emt 0:
10:14]} 15. Nxe4 {[%emt 0:01:22]} dxe4 {[%emt 0:00:06]} 16. Bxe4 {[%emt 0:12:
05]} Bd5 {[%emt 0:00:35]} 17. Bxd5 {[%emt 0:00:48]} Qxd5 {[%emt 0:00:10]} 18.
dxe5 {[%emt 0:01:01]} Qxd1 {[%emt 0:01:11]} 19. Rxd1 {[%emt 0:00:02]} Nxe5 {
[%emt 0:00:09]} 20. Nxe5 {[%emt 0:04:06]} Rxe5 {[%emt 0:00:06]} 21. Kf1 {
[%emt 0:02:24]} Rae8 {[%emt 0:24:53]} 22. Bf4 {[%emt 0:01:22]} Re4 {[%emt 0:01:
39]} 23. Bg3 {[%emt 0:04:10]} Bb6 {[%emt 0:07:00]} 24. f3 {[%emt 0:02:30]} Re2
{[%emt 0:04:01]} 25. Re1 {[%emt 0:00:03]} Rxe1+ {[%emt 0:00:13]} 26. Bxe1 {
[%emt 0:00:04]} Rd8 {[%emt 0:00:56]} 27. a4 {[%emt 0:06:42]} f5 {[%emt 0:07:49]
} 28. c4 {[%emt 0:04:57]} bxc4 {[%emt 0:08:35]} 29. Rc1 {[%emt 0:00:06]} Rd4 {
[%emt 0:02:32]} 30. Ke2 {[%emt 0:00:37]} c3 {[%emt 0:00:56]} 31. b3 {[%emt 0:
00:32]} Rd6 {[%emt 0:10:04]} 32. Rxc3 {[%emt 0:04:10]} Re6+ {[%emt 0:06:38]}
33. Kf1 {[%emt 0:00:05]} Ba5 {[%emt 0:01:36]} 34. Rc1 {[%emt 0:01:04]} Bxe1 {
[%emt 0:00:24]} 35. Rxe1 {[%emt 0:00:01]} Rc6 {[%emt 0:01:17]} 36. Re3 {
[%emt 0:06:12]} Kf7 {[%emt 0:01:23]} 37. f4 {[%emt 0:01:23]} Rc2 {[%emt 0:00:
59]} 38. Re5 {[%emt 0:00:52]} g6 {[%emt 0:00:53]} 39. Ra5 {[%emt 0:00:51]} Rb2
{[%emt 0:02:39]} 40. Rc5 {[%emt 0:00:52]} Rxb3 {[%emt 0:01:22]} 41. Rxc7+ {
[%emt 0:30:07]} Kf8 {[%emt 0:06:58]} 42. Rc6 {[%emt 0:00:00]} Rb4 {[%emt 0:02:
32]} 43. Rxa6 {[%emt 0:00:00]} Rxf4+ {[%emt 0:00:10]} 44. Ke2 {[%emt 0:00:00]}
Kg7 {[%emt 0:00:49]} 45. g3 {[%emt 0:00:00]} Rb4 {[%emt 0:01:14]} 46. h4 {
[%emt 0:00:00]} Rb3 {[%emt 0:02:20]} 47. Kf2 {[%emt 0:00:00]} Ra3 {[%emt 0:01:
28]} 48. a5 {[%emt 0:00:00]} Ra2+ {[%emt 0:00:40]} 49. Kf3 {[%emt 0:00:00]}
Ra3+ {[%emt 0:00:18]} 50. Kg2 {[%emt 0:00:23]} Ra2+ {[%emt 0:00:30]} 51. Kh3 {
[%emt 0:00:03]} Ra3 {[%emt 0:00:10]} 52. Ra7+ {[%emt 0:02:13]} Kf6 {[%emt 0:00:
21]} 53. Kg2 {[%emt 0:02:21]} Ra2+ {[%emt 0:01:40]} 54. Kf3 {[%emt 0:00:35]}
Ra3+ {[%emt 0:00:14]} 55. Kf2 {[%emt 0:00:29]} Ra2+ {[%emt 0:00:14]} 56. Kf3 {
[%emt 0:01:31]} Ra3+ {[%emt 0:00:09]} 57. Kg2 {[%emt 0:00:22]} Ra2+ {[%emt 0:
00:12]} 58. Kf3 {[%emt 0:00:56]} Ra3+ {[%emt 0:01:31]} 59. Kf2 {[%emt 0:00:28]}
Ra2+ {[%emt 0:00:11]} 60. Ke3 {[%emt 0:00:27]} Ra3+ {[%emt 0:00:25]} 61. Kf2 {
[%emt 0:00:35]} Ra2+ {[%emt 0:00:15]} 62. Kg1 {[%emt 0:00:30]} Ra1+ {[%emt 0:
11:33]} 63. Kh2 {[%emt 0:00:04]} Ra2+ {[%emt 0:00:13]} 64. Kh3 {[%emt 0:00:42]}
Ra3 {[%emt 0:00:17]} 65. Ra6+ {[%emt 0:00:27]} Kg7 {[%emt 0:00:13]} 66. h5 {
[%emt 0:00:44]} gxh5 {[%emt 0:00:49]} 67. Kh4 {[%emt 0:00:32]} Ra1 {[%emt 0:01:
05]} 68. Kh3 {[%emt 0:00:33]} Ra2 {[%emt 0:00:45]} 69. Ra7+ {[%emt 0:00:16]}
Kg6 {[%emt 0:00:33]} 70. a6 {[%emt 0:00:21]} Kf6 {[%emt 0:01:25]} 71. Ra8 {
[%emt 0:00:43]} Kg6 {[%emt 0:00:07]} 72. Rg8+ {[%emt 0:00:39]} Kf7 {[%emt 0:00:
41]} 73. Ra8 {[%emt 0:00:24]} Kf6 {[%emt 0:00:40]} 74. Rf8+ {[%emt 0:00:24]}
Kg6 {[%emt 0:00:41]} 75. Ra8 {[%emt 0:00:17]} Kg7 {[%emt 0:00:19]} 76. a7 {
[%emt 0:00:51]} Kh7 {[%emt 0:00:27]} 77. Rf8 {[%emt 0:00:20]} Rxa7 {[%emt 0:00:
23]} 78. Rxf5 {[%emt 0:00:05]} Kg6 {[%emt 0:00:29]} 79. Rf8 {[%emt 0:00:18]}
Ra2 {[%emt 0:00:48]} 80. Rg8+ {[%emt 0:00:16]} Kf5 {[%emt 0:00:19]} 81. Rf8+ {
[%emt 0:00:32]} Kg5 {[%emt 0:00:24]} 82. Rf4 {[%emt 0:00:17]} 1/2-1/2